{"text_format":"3","workbook":"xlsx","n_sheets":1,"sheets":["Report"],"read":"whole","date_system":"1900"}

{"sheet":"Report","index":0,"n_rows":36,"n_cols":51,"rows_kept":36}
["MARSH","Mon, 09 Oct 2023 09:59:26 GMT","South African Claims"]
[]
["Claim Ref","Related-to claim","User ID","Date of loss","Closure date","Type","Client Code","Regroupment client name","Client name","City","Claim Location code","Claim Location","Claim nature","Damage nature","Country code","Policy Number at claim level","Carrier Name","Insurance period","Status","Status reason","Claim handler user code","Subject","Main guarantee-risk code","Type of legal procedure","Client Type of Claim","Outst.Estim. Insurer ( VAT exc)","Paid by  Insurer ( VAT exc)","Recov. Insurer ( VAT exc)","Fees  Insurer ( VAT exc)","Cost Insurer ( VAT exc)","Outst.Estim.Client ( VAT exc)","Paid by Client ( VAT exc)","Recov.Client ( VAT exc)","Fees Client ( VAT exc)","Cost Client ( VAT exc)","Outst.Estim. SelfIns ( VAT exc)","Paid by SelfIns ( VAT exc)","Recov. SelfIns ( VAT exc)","Fees SelfIns ( VAT exc)","Cost SelfIns ( VAT exc)","Excess ( VAT exc)","Net loss ( VAT exc)","Gross Loss ( VAT exc)","Comments (1)","Comments (2)","Comments (3)","Comments (4)","Comments (5)","Circumstances of Loss","Last update date","Comment"]
["18648066","","TMM","2018-02-27","2018-07-31","Third Party","742915","South African National Space Agency","South African National Space Agency","SILVERTON","","KM RAMONE","Employers liability","Contractual liability","SOUTH AFRICA","S04083 14","Stalker Hutchinson Admiral (Pty)Ltd","2017","Closed","Settled. No claim from Client.","HB7","EPL:UNFAIR CONDUCT - SANSA","Claimed amount","","",0,0,0,0,0,0,0,0,0,0,0,0,0,0,0,0,0,0,"CLOSED EMPLOYYE WITHDREW CASE FROM CCMA","","","","","","20180731","CLOSED EMPLOYYE WITHDREW CASE FROM CCMA"]
["18648135","","TMM","2018-04-12","2018-06-08","Third Party","742915","South African National Space Agency","South African National Space Agency","SILVERTON","","","Employers liability","Contractual liability","SOUTH AFRICA","S04083 14","Stalker Hutchinson Admiral (Pty)Ltd","2018","Closed","Settled. No claim from Client.","HB7","EPL:NEHAWU obo MEMBERS","Claimed amount","","",0,0,0,0,0,0,0,0,0,0,0,0,0,0,0,0,0,0,"CLOSED AS A NO CLAIM INCIDENT DID NOT TRIGGER","OPERATIVE CLAUSE OF POLICY","","","","","20180608","CLOSED AS A NO CLAIM INCIDENT DID NOT TRIGGEROPERATIVE CLAUSE OF POLICY"]
["18648168","","TMM","2018-04-13","2018-05-24","Own Damage","742915","South African National Space Agency","South African National Space Agency","SILVERTON","","HARTEBEESHOEK","Electronic breakdown","","SOUTH AFRICA","50099343","Emerald Risk Transfer (Pty) Ltd","2018","Closed","Settled. No claim from Client.","HB7","FLUXGATE SENSOR DAMAGE","Material Damage","","",0,0,0,0,0,0,0,0,0,0,0,0,0,0,0,0,0,0,"CLOSED AS NO CLAIM DAMAGE CAUSED BY VERMIN OR","INSECTS EXCLUDED","","","","","20180524","CLOSED AS NO CLAIM DAMAGE CAUSED BY VERMIN ORINSECTS EXCLUDED"]
["18648276","","TMM","2018-07-23","2018-12-13","Own Damage","742915","South African National Space Agency","South African National Space Agency","SILVERTON","","HERMANUS","Electrical breakdown","Electronic","SOUTH AFRICA","50099343","Emerald Risk Transfer (Pty) Ltd","2018","Closed","Settled. No claim from Client.","HB7","MATERIAL DAMAGE - SANSA","Material Damage","","",0,0,0,0,0,0,0,0,0,0,0,0,0,0,0,0,0,0,"CLOSED NO CLAIM","","","","","","20181213","CLOSED NO CLAIM"]
["18648309","","TMM","2018-09-07","2018-09-17","Own Damage","742915","South African National Space Agency","South African National Space Agency","SILVERTON","","","Armed Robbery","Theft","SOUTH AFRICA","50099343","Emerald Risk Transfer (Pty) Ltd","2018","Closed","Settled. No claim from Client.","HB7","GUNS STOLEN - ARMED ROBBERY","Material Damage","","",0,0,0,0,0,0,0,0,0,0,0,0,0,0,0,0,0,0,"CLOSED ITEMS BELONG TO FIDELITY","","","","","","20180917","CLOSED ITEMS BELONG TO FIDELITY"]
["18648353","","TMM","2018-10-05","2018-12-13","Own Damage","742915","South African National Space Agency","South African National Space Agency","SILVERTON","","","Bursting/Overflowing","Bursting","SOUTH AFRICA","50099343","Emerald Risk Transfer (Pty) Ltd","2018","Closed","Settled. Within excess.","HB7","GEYSER BURST","Material Damage","","",0,0,0,0,0,0,0,0,0,0,0,0,0,0,0,{"v":5162.34,"d":"5,162.34"},0,{"v":5162.34,"d":"5,162.34"},"CLOSED IN EXCESS","","","","","","20181213","CLOSED IN EXCESS"]
["20172787","","TMM","2020-10-13","2021-09-02","Own Damage","742915","South African National Space Agency","South African National Space Agency","SILVERTON","","CAPE TOWN","Bus. Interruption","","SOUTH AFRICA","50099343","Emerald Risk Transfer (Pty) Ltd","2020","Closed","02F2377","F98","BI:LOSS OF REVENUE -COVID 19","Business interruption","","",0,0,0,0,0,0,0,0,0,0,0,0,0,0,0,{"v":86956.52,"d":"86,956.52"},0,{"v":86956.52,"d":"86,956.52"},"INSURERS REPUDIATED CLOSE FILE","","","","","","20210902","INSURERS REPUDIATED CLOSE FILE"]
["20630013","","TMM","2020-10-08","2021-10-20","Own Damage","742915","South African National Space Agency","South African National Space Agency","SILVERTON","","","02482LAP","","SOUTH AFRICA","50099343","Emerald Risk Transfer (Pty) Ltd","2020","Closed","Settled. File closed","F98","ASANDA LAPTOP STOLEN AIRPORT","Computer/Electronic equipment","","",0,{"v":20000,"d":"20,000.00"},0,0,{"v":20000,"d":"20,000.00"},0,0,0,0,0,0,0,0,0,0,{"v":8695.65,"d":"8,695.65"},{"v":20000,"d":"20,000.00"},{"v":28695.65,"d":"28,695.65"},"ALL INSURERS PAID","CLIENT TO REFUND CHUBB R517.50","CHUBB WILL DEDUCT THIS AMOUNT FROM ANOTHER","CLAIM","","","20211020","ALL INSURERS PAIDCLIENT TO REFUND CHUBB R517.50CHUBB WILL DEDUCT THIS AMOUNT FROM ANOTHERCLAIM"]
["20648034","","TMM","2020-02-10","2020-02-19","Own Damage","742915","South African National Space Agency","South African National Space Agency","SILVERTON","","","Accidental damage","Electronic","SOUTH AFRICA","50099343","Emerald Risk Transfer (Pty) Ltd","2019","Closed","Settled. Within excess.","HB7","LAPTOP DAMAGE","Computer/Electronic equipment","","",0,0,0,0,0,0,0,0,0,0,0,0,0,0,0,{"v":2851.56,"d":"2,851.56"},0,{"v":2851.56,"d":"2,851.56"},"SETTLED WITHIN EXCESS","","","","","","20200219","SETTLED WITHIN EXCESS"]
["20648044","","TMM","2020-02-14","2021-03-30","Own Damage","742915","South African National Space Agency","South African National Space Agency","SILVERTON","","ATTERBURY","Theft","Theft","SOUTH AFRICA","50099343","Emerald Risk Transfer (Pty) Ltd","2019","Closed","Settled. File closed","F98","LAPTOP STOLEN","Computer/Electronic equipment","","",0,{"v":29328.85,"d":"29,328.85"},0,0,{"v":29328.85,"d":"29,328.85"},0,0,0,0,0,0,0,0,0,0,{"v":10000,"d":"10,000.00"},{"v":29328.85,"d":"29,328.85"},{"v":39328.85,"d":"39,328.85"},"CLOSE FILE CLAIM PAID","","","","","","20210330","CLOSE FILE CLAIM PAID"]
["20648114","","TMM","2020-06-01","2022-02-08","Own Damage","742915","South African National Space Agency","South African National Space Agency","SILVERTON","","SOSHANGUVE","Theft","Electronic","SOUTH AFRICA","50099343","Emerald Risk Transfer (Pty) Ltd","2020","Closed","Settled. File closed","F98","LAPTOP STOLEN - T MATHOSE","Computer/Electronic equipment","","",0,{"v":13956.99,"d":"13,956.99"},0,0,{"v":13956.99,"d":"13,956.99"},0,0,0,0,0,0,0,0,0,0,{"v":8695.65,"d":"8,695.65"},{"v":13956.99,"d":"13,956.99"},{"v":22652.64,"d":"22,652.64"},"EMARLD AND INNIU PAID TRANSIONAL PD","CHUBB PD LESS THE OVERPAYMENT TO CLIENT","ON ANOTHER CLAIM","","","","20220208","EMARLD AND INNIU PAID TRANSIONAL PDCHUBB PD LESS THE OVERPAYMENT TO CLIENTON ANOTHER CLAIM"]
["20648150","","TMM","2020-07-13","2021-06-29","Own Damage","742915","South African National Space Agency","South African National Space Agency","SILVERTON","","ENTERPRISE BUILDING U18","Theft","","SOUTH AFRICA","50099343","Emerald Risk Transfer (Pty) Ltd","2020","Closed","Settled. Repudiated.","F98","10X LAPTOPS STOLEN","Computer/Electronic equipment","","",0,0,0,0,0,0,0,0,0,0,0,0,0,0,0,0,0,0,"NO CLAIM CLOSE FILE","","EXCLUSION 4 PG 30 ON THE POLICY","","","","20210629","NO CLAIM CLOSE FILEEXCLUSION 4 PG 30 ON THE POLICY"]
["21172508","","TMM","2021-02-10","2021-02-24","Own Damage","742915","South African National Space Agency","South African National Space Agency","SILVERTON","","HARTEBEESTHOEK","Lightning","","SOUTH AFRICA","50099343","Emerald Risk Transfer (Pty) Ltd","2020","Closed","Settled. File closed","F98","MATERIAL DAMAGE","Material Damage","","",0,0,0,0,0,0,0,0,0,0,0,0,0,0,0,0,0,0,"CLIENT ADVISE NO CLAIM CLOSE FILE","","","","","","20210224","CLIENT ADVISE NO CLAIM CLOSE FILE"]
["21172509","","TMM","2021-01-22","2021-05-03","Own Damage","742915","South African National Space Agency","South African National Space Agency","SILVERTON","","TECNOLAB BLD","Material damage","","SOUTH AFRICA","50099343","Emerald Risk Transfer (Pty) Ltd","2020","Closed","Settled. Within excess.","F98","GEYSER DAMAGE","Material Damage","","",0,0,0,0,0,0,0,0,0,0,0,0,0,0,0,{"v":9773.91,"d":"9,773.91"},0,{"v":9773.91,"d":"9,773.91"},"CLAIM FALLS WITHIN THE EXCESS CLOSE FILE","","","","","","20210503","CLAIM FALLS WITHIN THE EXCESS CLOSE FILE"]
["21630039","","TMM","2021-04-20","2021-09-02","Own Damage","742915","South African National Space Agency","South African National Space Agency","SILVERTON","","","Mechanical Failure","","SOUTH AFRICA","10406622","Consort Technical Underwriting Mngrs Ltd","2021","Closed","Settled. File closed","F98","EGNINE FAILRE","Material Damage","","",0,{"v":2100059.12,"d":"2,100,059.12"},0,0,{"v":2100059.12,"d":"2,100,059.12"},0,0,0,0,0,0,0,0,0,0,{"v":26086.96,"d":"26,086.96"},{"v":2100059.12,"d":"2,100,059.12"},{"v":2126146.08,"d":"2,126,146.08"},"ALL CO INSURER PAID CLOSE FILE","","","","","","20210902","ALL CO INSURER PAID CLOSE FILE"]
["21630126","","TMM","2021-09-09","2022-03-18","Own Damage","742915","South African National Space Agency","South African National Space Agency","SILVERTON","","","Liability","","SOUTH AFRICA","TBA","AIG South Africa Ltd","2021","Closed","Settled. No claim from Client.","F98","POSSIBLE CYBER CLAIM","Material Damage","","",0,0,0,0,0,0,0,0,0,0,0,0,0,0,0,0,0,0,"NO CLAIM CLOSED FILE","","","","","","20220318","NO CLAIM CLOSED FILE"]
["21630142","","TMM","2021-10-22","2022-01-13","Own Damage","742915","South African National Space Agency","South African National Space Agency","SILVERTON","","KRUGERSDORP","Fire","Electronic","SOUTH AFRICA","50099343","Emerald Risk Transfer (Pty) Ltd","2021","Closed","Settled. No claim from Client.","F98","FIRE IN UPS SYSTEM","Computer/Electronic equipment","","",0,0,0,0,0,0,0,0,0,0,0,0,0,0,0,{"v":26086.96,"d":"26,086.96"},0,{"v":26086.96,"d":"26,086.96"},"REPAIRS DONE UNDER WARRANTEE NO CLAIM","CLOSE FILE","","","","FIRE IN UPS SYSTEM","20220113","REPAIRS DONE UNDER WARRANTEE NO CLAIMCLOSE FILE"]
["21630178","","TMM","2021-11-30","2022-03-18","Third Party","742915","South African National Space Agency","South African National Space Agency","SILVERTON","","","Public Liability","Accidental","SOUTH AFRICA","50099346","Stalker Hutchison Admiral (Pty) Ltd","2021","Closed","Settled. No claim from Client.","F98","SPRINGBOK JUMPED INTO FENCE","Claimed amount","","",0,0,0,0,0,0,0,0,0,0,0,0,0,0,0,0,0,0,"NO CLAIM CLOSED FILE","","","","","SPRINGBOK JUMPED INTO FENCE FARMER THREATEN ACTION","20220318","NO CLAIM CLOSED FILE"]
["21630179","","TMM","2021-11-09","2022-04-21","Own Damage","742915","South African National Space Agency","South African National Space Agency","SILVERTON","","UKZN WESTVILLE CAMPUS","Fire","Electronic","SOUTH AFRICA","50099343","Emerald Risk Transfer (Pty) Ltd","2021","Closed","Settled. No claim from Client.","F98","SOOT DAMAGE TO EQUIPMENT","Computer/Electronic equipment","","",0,0,0,0,0,0,0,0,0,0,0,0,0,0,0,0,0,0,"CLOSE FILE NO CLAIM","","","","","SOOT DAMAGE TO EQUIPMENT","20220421","CLOSE FILE NO CLAIM"]
["21630180","","TMM","2021-12-01","2023-01-19","Own Damage","742915","South African National Space Agency","South African National Space Agency","SILVERTON","","","Electronic breakdown","Electronic","SOUTH AFRICA","50099343","Emerald Risk Transfer (Pty) Ltd","2021","Closed","Settled. No claim from Client.","F98","DTU DAMAGED","Computer/Electronic equipment","","",0,0,0,0,0,0,0,0,0,0,0,0,0,0,0,0,0,0,"CLOSED FILE NO CLAIM FROM CLIENT","","","","","DTU DAMAGED","20230119","CLOSED FILE NO CLAIM FROM CLIENT"]
["21630181","","TMM","2021-12-12","2022-12-28","Third Party","742915","South African National Space Agency","South African National Space Agency","SILVERTON","","","Employers liability","","SOUTH AFRICA","50099348","Stalker Hutchison Admiral (Pty) Ltd","2021","Closed","Settled. No claim from Client.","F98","EPL-EMPLOYEE DISMISSAL","Claimed amount","","",0,0,0,0,0,0,0,0,0,0,0,0,0,0,0,0,0,0,"NO CLAIM ACCORDING TO THE INSURERS ADVISED","CE TO ADVISE THE CLIENT ACCORDING","CLOSED FILE NOW","","","EMPLOYEE DISMISSAL WITH FULL REMUNERATION SINCE\nSUSPENSION","20221228","NO CLAIM ACCORDING TO THE INSURERS ADVISEDCE TO ADVISE THE CLIENT ACCORDINGCLOSED FILE NOW"]
["22630018","","TMM","2022-02-03","2022-05-18","Own Damage","742915","South African National Space Agency","South African National Space Agency","SILVERTON","0033","PRETORIA","Lightning","Electronic","SOUTH AFRICA","50099343","Emerald Risk Transfer (Pty) Ltd","2021","Closed","Settled. No claim from Client.","F98","LAPTOP DAMAGED BY LIGHTNING","Computer/Electronic equipment","","",0,0,0,0,0,0,0,0,0,0,0,0,0,0,0,0,0,0,"CLOSE NO CLAIM FROM CLIENT","","","","","LAPTOP DAMAGED DUE TO LIGHTNING STRIKE.","20220518","CLOSE NO CLAIM FROM CLIENT"]
["22630084","","TMM","2022-04-27","2022-12-20","Own Damage","742915","South African National Space Agency","South African National Space Agency","SILVERTON","","","Electronic breakdown","Electronic","SOUTH AFRICA","50099343","Emerald Risk Transfer (Pty) Ltd","2022","Closed","Settled. No claim from Client.","F98","EQUIPMENT DAMAGED POWER OUTAGE","Material Damage","","",0,0,0,0,0,0,0,0,0,0,0,0,0,0,0,0,0,0,"CLIENT CANCELLED CLAIM CLOSED FILE","","","","","EQUIPMENT DAMAGED POWER OUTAGE & BUSINESS INTERRUPTION","20221220","CLIENT CANCELLED CLAIM CLOSED FILE"]
["22630168","","TMM","2022-07-14","2023-07-24","Own Damage","742915","South African National Space Agency","South African National Space Agency","SILVERTON","","HARTEBEESHOEK  KRUGERSDORP","Leakage/Spillage","Overturning","SOUTH AFRICA","50099343","Emerald Risk Transfer (Pty) Ltd","2022","Closed","Settled. No claim from Client.","ELL","TRUCK OVERTURNED-DIESEL SPILL","Material Damage","","",0,0,0,0,0,0,0,0,0,0,0,0,0,0,0,0,0,0,"NO COVER - FILE CLOSED","","","","","TRUCK OVERTURNED SPILLING DIESEL CAUSING ENVIRONMENTAL\nDAMAGE","20230724","NO COVER - FILE CLOSED"]
["22630283","","TMM","2022-12-12","2023-05-10","Own Damage","742915","South African National Space Agency","South African National Space Agency","SILVERTON","","","Theft/Burglary","","SOUTH AFRICA","50099343","Emerald Risk Transfer (Pty) Ltd","2022","Closed","Settled. No claim from Client.","ELL","THEFT OF TOOLS & EQUIPMENT","Material Damage","","",0,0,0,0,0,0,0,0,0,0,0,0,0,0,0,{"v":8695.65,"d":"8,695.65"},0,{"v":8695.65,"d":"8,695.65"},"CLAIM WITHDRAW - FILE CLOSED","","","","","THEFT OF TOOLS & EQUIPMENT","20230510","CLAIM WITHDRAW - FILE CLOSED"]
["23221521","","TMM","2023-01-11","","Own Damage","742915","South African National Space Agency","South African National Space Agency","SILVERTON","","FARM NO 502JQ  HARTEBEESTHOEK","Theft","Theft","SOUTH AFRICA","50099343","Emerald Risk Transfer (Pty) Ltd","2022","Outstanding","Awaiting EFT Confirmation","ELL","THEFT OF VARIOUS ITEMS","Material Damage","","",{"v":101019.65,"d":"101,019.65"},{"v":33762.95,"d":"33,762.95"},0,0,{"v":134782.6,"d":"134,782.60"},0,0,0,0,0,0,0,0,0,0,{"v":8695.65,"d":"8,695.65"},{"v":134782.6,"d":"134,782.60"},{"v":143478.25,"d":"143,478.25"},"TRS OUTSTANDING","","","","","SPACE OPERATIONS FARM PREMISES HAD A BURGLARY / THEFT\nON THE NIGHT","20230901","TRS OUTSTANDING"]
["23221522","","TMM","2023-01-31","2023-08-25","Own Damage","742915","South African National Space Agency","South African National Space Agency","SILVERTON","","PRETORIA","02482LAP","Theft","SOUTH AFRICA","50099343","Emerald Risk Transfer (Pty) Ltd","2022","Closed","Settled. File closed","ELL","I NTSOANE - STOLEN LAPTOP","Material Damage","","",0,{"v":9550,"d":"9,550.00"},0,0,{"v":9550,"d":"9,550.00"},0,0,0,0,0,0,0,0,0,0,{"v":8695.65,"d":"8,695.65"},{"v":9550,"d":"9,550.00"},{"v":18245.65,"d":"18,245.65"},"FILE CLOSED","","","","","I NTSOANE - STOLEN LAPTOP","20230825","FILE CLOSED"]
["23221523","","TMM","2023-01-17","2023-07-18","Own Damage","742915","South African National Space Agency","South African National Space Agency","SILVERTON","","U18 STOREROOM","Theft","Theft","SOUTH AFRICA","50099343","Emerald Risk Transfer (Pty) Ltd","2022","Closed","Settled. No claim from Client.","ELL","ITEMS WENT  MISSING","Computer/Electronic equipment","","",0,0,0,0,0,0,0,0,0,0,0,0,0,0,0,0,0,0,"FILE CLOSED - LAPTOP LOCATED","","","","","THE SANSA OFFICIALS ACCESSED THE STOREROOM TO EXCHANGE\nLAPTOP BAG WHEN THEY NOTICED THAT THE THREE NEW LAPTOP\nWERE MISSING. AFTER INVESTIGATION TWO LAPTOPS HAVE BEEN\nFOUND. THE MISSING ITEMS ARE: 2 LAPTOP CHARGERS  1\nLAPTOP AND 7 HDMI CABLES.","20230718","FILE CLOSED - LAPTOP LOCATED"]
["23221561","","TMM","2023-01-09","2023-09-14","Own Damage","742915","South African National Space Agency","South African National Space Agency","SILVERTON","","BELLAIRS SHOPPING CENTRE","Theft/Burglary","Electronic","SOUTH AFRICA","50099343","Emerald Risk Transfer (Pty) Ltd","2022","Closed","Settled. No claim from Client.","ELL","LAPTOP STOLEN FORM VEHICLE","Computer/Electronic equipment","","",0,0,0,0,0,0,0,0,0,0,0,0,0,0,0,0,0,0,"CLAIM DUPLICATED CLOSED FILE RE CLIENT","","","","","LAPTOP STOLEN FORM VEHICLE","20230914","CLAIM DUPLICATED CLOSED FILE RE CLIENT"]
["23221562","","TMM","2023-04-30","","Own Damage","742915","South African National Space Agency","South African National Space Agency","SILVERTON","","311  RICHARD STREET  HATFIELD","Theft/Burglary","Electronic","SOUTH AFRICA","50099343","Emerald Risk Transfer (Pty) Ltd","2023","Outstanding","Awaiting EFT Confirmation","ELL","THEFT OF LAPTOP FROM BEDROOM","Computer/Electronic equipment","","",{"v":25273.44,"d":"25,273.44"},0,0,0,{"v":25273.44,"d":"25,273.44"},0,0,0,0,0,0,0,0,0,0,0,{"v":25273.44,"d":"25,273.44"},{"v":25273.44,"d":"25,273.44"},"AMENDED AOL SEND INSURERS - AWAIT THEIR EFT C","ONFIRMATIONS","AWAIT REPLY FROM CE RE PREMIUM PAID","","","THEFT OF LAPTOP FROM BEDROOM","20230926","AMENDED AOL SEND INSURERS - AWAIT THEIR EFT CONFIRMATIONSAWAIT REPLY FROM CE RE PREMIUM PAID"]
["23221612","","TMM","2023-04-17","","Own Damage","742915","South African National Space Agency","South African National Space Agency","SILVERTON","","","Theft/Burglary","Electronic","SOUTH AFRICA","50099343","Emerald Risk Transfer (Pty) Ltd","2023","Outstanding","Awaiting reply from Insurer","ELL","ELECTRONIC STOLEN IN BREAK-IN","Material Damage","","",{"v":50194,"d":"50,194.00"},0,0,0,{"v":50194,"d":"50,194.00"},0,0,0,0,0,0,0,0,0,0,0,{"v":50194,"d":"50,194.00"},{"v":50194,"d":"50,194.00"},"AWAIT FURTHER ADVISES FROM INSURERS.","ALL DOCUMENTS SEND TO THEM","REMINDER TO INSURERS FOR AOL","","","ELECTRONIC STOLEN IN BREAK-IN","20230926","AWAIT FURTHER ADVISES FROM INSURERS.ALL DOCUMENTS SEND TO THEMREMINDER TO INSURERS FOR AOL"]
["23221668","","TMM","2023-07-13","","Own Damage","742915","South African National Space Agency","South African National Space Agency","SILVERTON","","ENTERPRISE BUILDING","02482LAP","Accidental","SOUTH AFRICA","50099343","Emerald Risk Transfer (Pty) Ltd","2023","Outstanding","Awaiting document from Client","ELL","LAPTOP FELL ON GROUND","Material Damage","","",0,0,0,0,0,0,0,0,0,0,0,0,0,0,0,0,0,0,"AWAIT OS DOC FROM CLIENT","QUOTE  DAMAGES REPORT AND ASSET REG","","","","LAPTOP SLIPPED & FELL ON THE GROUND BY THE OFFICE\nCHAIR","20230927","AWAIT OS DOC FROM CLIENTQUOTE  DAMAGES REPORT AND ASSET REG"]
[{"$nulls":25},{"$f":"SUM(Z4:Z35)","v":{"v":176487.09,"d":"176,487.09"}},{"v":2206657.91,"d":"2,206,657.91"},0,0,{"v":2383145,"d":"2,383,145.00"},0,0,0,0,0,0,0,0,0,0,{"v":210396.49999999994,"d":"210,396.50"},{"v":2383145,"d":"2,383,145.00"},{"v":2593541.5,"d":"2,593,541.50"},{"$f":"COUNTA(AR4:AR35)","v":32},32,32,32,32,32,32,32]